bitfinex-derivatives/quotes_ETHF0:USTF0_20241229
["timestamp","ask_amount","ask_price","bid_price","bid_amount"]
[1735462861341,3.50246,3399.3,3399.2,0.29467]
[1735462861543,3.2078,3399.3,3399.2,1.33533323]
[1735462862946,1.16685,3399.4,3399.3,0.29466]
[1735462863146,4.37465,3399.4,3399.3,0.29466]
[1735462865251,4.08,3399.4,3399.3,0.29466]
[1735462865651,3.6581,3399.4,3399.3,0.29466]
[1735462869850,0.4503,3399.4,3399.3,0.29466]
[1735462872052,0.74495,3399.4,3399.3,0.29466]
[1735462873151,0.74495,3399.4,3399.2,4.61008097]
[1735462873152,0.29466,3399.3,3399.2,4.90474097]
[1735462873344,0.4568,3399.3,3399.2,0.29466]
[1735462882458,0.75146,3399.3,3399.2,0.29466]
[1735462885768,0.4568,3399.3,3399.2,0.29466]
[1735462887572,0.75146,3399.3,3399.2,0.29466]
[1735462888270,3.2078,3399.5,3399.2,0.29466]
[1735462888271,3.2078,3399.5,3399.2,4.90474097]
[1735462888470,3.2078,3399.5,3399.4,1.33531323]
[1735462889475,3.2078,3399.5,3399.4,5.9453942]
[1735462890470,3.2078,3399.5,3399.4,1.33531323]
[1735462892070,3.2078,3399.5,3399.4,1.79291323]
[1735462892872,5.77268012,3399.7,3399.6,0.29463]
[1735462893066,6.49808831,3399.8,3399.6,1.04066323]
[1735462893267,6.49808831,3399.8,3399.7,0.29462]
[1735462895967,0.29462,3399.7,3399.6,1.33529323]
[1735462896873,6.49808831,3399.8,3399.7,0.29462]
[1735462897763,0.29462,3399.7,3399.6,1.33529323]
[1735462899979,0.72540819,3399.8,3399.7,0.29462]
[1735462900177,0.43078819,3399.8,3399.7,0.29462]
[1735462900477,0.72540819,3399.8,3399.7,0.29462]
[1735462901478,0.29700819,3399.8,3399.7,0.29462]
[1735462905482,0.29463,3399.7,3399.6,0.29463]
[1735462906482,0.00238819,3399.8,3399.5,5.03568097]
[1735462906679,0.29700819,3399.8,3399.7,0.29462]
[1735462910491,0.29462,3399.8,3399.7,0.29462]
[1735462912990,0.29698074,3399.8,3399.7,0.29462]
[1735462913288,0.00236074,3399.8,3399.5,5.03568097]
[1735462913479,0.29463,3399.7,3399.6,0.29463]
[1735462913882,0.29462,3399.7,3399.6,1.33529323]
[1735462914090,0.29462,3399.7,3399.6,0.29463]
[1735462914388,0.72992,3399.7,3399.6,0.29463]
[1735462921688,0.29462,3399.7,3399.6,0.29463]
[1735462921989,0.00236074,3399.8,3399.7,0.29462]
[1735462922196,0.29698074,3399.8,3399.7,0.29462]
[1735462922395,0.00236074,3399.8,3399.7,0.29462]
[1735462926297,0.29698074,3399.8,3399.7,0.29462]
[1735462928091,0.00236074,3399.8,3399.7,0.29462]
[1735462929094,0.00236074,3399.8,3399.7,1.33528323]
[1735462929896,0.00236074,3399.8,3399.7,5.9453642]
[1735462934302,0.00236074,3399.8,3399.7,11.84393393]
[1735462935402,0.00236074,3399.8,3399.7,7.23385296]
[1735462935899,0.00236074,3399.8,3399.7,6.19318973]
[1735462937205,0.00236074,3399.8,3399.7,0.29462]
[1735462938603,0.00236074,3399.8,3399.7,4.93195493]
[1735462939395,0.00236074,3399.8,3399.7,5.97261816]
[1735462939804,0.00236074,3399.8,3399.7,7.23573228]
[1735462941004,0.00236074,3399.8,3399.7,14.18287202]
[1735462943110,0.29698074,3399.8,3399.7,14.18287202]
[1735462944211,0.00236074,3399.8,3399.7,14.18287202]
[1735462945709,0.00236074,3399.8,3399.7,7.23573228]
[1735462951012,0.29698074,3399.8,3399.7,7.23573228]
[1735462951410,0.00236074,3399.8,3399.7,7.23573228]
[1735462952615,0.00236074,3399.8,3399.7,14.18287202]
[1735462971125,0.00236074,3399.8,3399.7,14.63407202]
[1735462976124,0.00236074,3399.8,3399.7,7.68693228]
[1735462977431,0.29698074,3399.8,3399.7,7.68693228]
[1735462978936,0.29698074,3399.8,3399.7,14.64786541]
[1735462981629,0.00236074,3399.8,3399.7,14.64786541]
[1735462982332,0.00236074,3399.8,3399.7,7.68693228]
[1735462985234,0.00236074,3399.8,3399.7,14.64805989]
[1735462985435,0.29461,3399.9,3399.8,0.29462]
[1735462985636,0.29461,3399.9,3399.7,14.35343989]
[1735462985836,0.29461,3399.9,3399.7,14.64805989]
[1735462986037,0.29461,3399.9,3399.8,0.29462]
[1735462986338,6.50499012,3400.0,3399.8,0.29462]
[1735462986539,0.29461,3399.9,3399.8,6.19506905]
[1735462988039,0.29702564,3399.9,3399.8,6.19506905]
[1735462988241,0.29702564,3399.9,3399.8,5.90044905]
[1735462992941,0.29702564,3399.9,3399.8,6.19506905]
[1735462994241,0.29702564,3399.9,3399.8,13.15619666]
[1735462995942,0.29702564,3399.9,3399.8,12.86157666]
[1735462996842,0.29702564,3399.9,3399.8,13.15619666]
[1735462997840,0.00241564,3399.9,3399.8,13.15619666]
[1735462999841,0.00241564,3399.9,3399.8,6.19506905]
[1735463000543,0.00241564,3399.9,3399.8,47.45946905]
[1735463001239,0.00241564,3399.9,3399.8,59.25892036]
[1735463002544,0.00241564,3399.9,3399.8,68.53609601]
[1735463005345,0.00241564,3399.9,3399.8,56.7366447]
[1735463006937,9.25087887,3399.9,3399.0,16.0801532]
[1735463007142,3.50246,3399.3,3399.0,16.0801532]
[1735463007850,3.2078,3399.3,3399.2,1.04066323]
[1735463008051,3.2078,3399.3,3399.2,15.22540198]
[1735463008252,3.50246,3399.3,3399.2,15.22540198]
[1735463008551,3.50246,3399.3,3399.2,14.18473875]
[1735463009150,8.06048697,3399.3,3399.2,14.18473875]
[1735463013455,3.94462747,3399.3,3399.2,14.18473875]
[1735463014856,3.50246,3399.3,3399.2,14.18473875]
[1735463016156,0.29467,3399.2,3399.1,41.84066323]
[1735463016566,0.29467,3399.2,3399.1,1.04066323]
[1735463016959,0.29468,3399.1,3399.0,14.18473875]
[1735463017163,0.29468,3399.1,3398.9,42.30456323]
[1735463017368,0.29468,3399.1,3399.0,14.18473875]
[1735463017864,0.73684747,3399.1,3399.0,14.18473875]
[1735463018372,1.20114747,3399.1,3399.0,14.18473875]
[1735463019464,1.20114747,3399.1,3398.3,0.4347]
[1735463019465,5.52771339,3399.1,3398.3,0.4347]
[1735463019773,0.29475,3398.3,3398.2,0.4317]
[1735463020272,0.29475,3398.3,3398.2,14.61643875]
[1735463021363,0.73691747,3398.3,3398.2,14.61643875]
[1735463021769,1.19621747,3398.3,3398.2,14.61643875]
[1735463022470,4.40401747,3398.3,3398.2,14.61643875]
[1735463022673,7.86483779,3398.3,3398.2,14.61643875]
[1735463022873,7.86483779,3398.3,3398.2,14.18473875]
[1735463023072,8.61075102,3398.3,3397.9,0.4308]
[1735463023373,0.2948,3397.7,3397.6,0.4308]
[1735463023673,0.29481,3397.6,3397.3,1.04066323]
[1735463023868,0.29482,3397.4,3397.3,1.04066323]
[1735463024069,3.50262,3397.4,3397.3,1.04066323]
[1735463024371,3.50262,3397.4,3397.3,56.02540198]
[1735463025567,3.50262,3397.4,3397.3,14.18473875]
[1735463026563,4.54328323,3397.4,3397.3,14.18473875]
[1735463026769,4.24846323,3397.4,3396.7,1.46196323]
[1735463026967,0.29488,3396.8,3396.7,1.46196323]
[1735463027168,0.29488,3396.8,3396.7,15.64670198]
[1735463028573,1.04066323,3397.2,3396.7,15.64670198]
[1735463028774,0.29487,3396.9,3396.7,1.46196323]
[1735463028971,1.04066323,3397.2,3396.7,1.46196323]
[1735463029173,0.29486,3397.1,3396.8,0.29487]
[1735463029372,0.29486,3397.0,3396.8,0.29487]
[1735463029577,0.29486,3397.0,3396.7,1.75684323]
[1735463030276,0.29486,3397.0,3396.7,0.71618]
[1735463030471,3.2078,3396.8,3396.1,40.8]
[1735463030674,3.2078,3396.4,3396.1,40.8]
[1735463030874,3.50272,3396.4,3396.1,40.8]
[1735463031176,0.29492,3396.3,3396.2,14.18473875]
[1735463033980,2.60105335,3397.1,3396.7,0.29488]
[1735463034281,0.73215,3397.1,3396.8,0.73577]
[1735463034576,0.73215,3397.1,3396.9,40.8]
[1735463035379,0.4373,3397.1,3396.9,40.8]
[1735463035581,0.73215,3397.1,3396.9,40.8]
[1735463036078,0.73215,3397.1,3396.8,0.73577]
[1735463036380,0.4373,3397.1,3396.9,0.29486]
[1735463036580,0.4373,3397.1,3396.9,41.09486]
[1735463037079,0.4373,3397.1,3396.9,0.29486]
[1735463037571,0.4373,3397.1,3396.8,0.4409]
[1735463037572,0.4373,3397.1,3396.8,41.53577]
[1735463037772,0.4373,3397.1,3396.8,41.2409]
[1735463037971,0.4373,3397.1,3396.9,0.29486]
[1735463038968,0.4373,3397.1,3396.8,0.4409]
[1735463039275,0.73215,3397.1,3396.8,0.73577]
[1735463039677,0.73215,3397.1,3396.8,0.4409]
[1735463039881,0.29486,3397.0,3396.8,0.4409]
[1735463040277,0.29486,3397.0,3396.8,14.62563875]
[1735463040481,0.29487,3396.9,3396.8,14.62563875]
[1735463040682,0.29487,3396.9,3396.8,0.4409]
[1735463040977,0.29487,3396.9,3396.8,14.62563875]
[1735463041774,0.29486,3397.0,3396.8,14.62563875]
[1735463041973,0.29486,3397.0,3396.8,0.4409]
[1735463042173,0.29486,3397.0,3396.8,14.62563875]
[1735463042376,0.73215,3397.1,3396.8,14.92050875]
[1735463042577,0.73215,3397.1,3396.8,0.73577]
[1735463043183,0.4373,3397.1,3396.8,0.73577]
[1735463043381,0.29486,3397.0,3396.8,0.73577]
[1735463043775,0.4373,3397.1,3396.9,0.29486]
[1735463043978,0.4373,3397.1,3396.8,0.4409]
[1735463044385,0.73215,3397.1,3396.8,0.73577]
[1735463044585,0.73215,3397.1,3396.8,14.92050875]
[1735463044778,0.4373,3397.1,3396.9,0.428]
[1735463044979,0.4373,3397.1,3396.9,0.72286]
[1735463045179,0.73215,3397.1,3396.9,0.72286]
[1735463045683,0.4373,3397.1,3396.9,0.72286]
[1735463046774,0.4373,3397.1,3396.9,0.428]
[1735463047085,0.73215,3397.1,3396.9,0.428]
[1735463047288,0.29486,3397.0,3396.9,0.428]
[1735463047488,0.29487,3396.9,3396.8,14.62563875]
[1735463048381,0.29489,3396.6,3396.4,3.2078]
[1735463048577,0.2949,3396.5,3396.4,3.2078]
[1735463049391,1.17445,3397.1,3396.3,14.18473875]
[1735463049392,3.2078,3396.9,3396.3,14.18473875]
[1735463049587,3.2078,3396.5,3396.4,0.29491]
[1735463049787,0.2949,3396.6,3396.2,0.4287]
[1735463050085,0.29488,3396.8,3396.4,0.2949]
[1735463050275,0.2949,3396.5,3396.4,0.2949]
[1735463050480,0.29491,3396.4,3396.3,0.29491]
[1735463051291,3.2078,3396.9,3396.2,14.61343875]
[1735463051580,0.29491,3396.4,3396.3,0.29491]
[1735463053091,3.94498,3396.9,3396.3,0.29491]
[1735463053286,0.29491,3396.5,3396.3,0.29491]
[1735463053491,0.4647,3396.4,3396.3,0.29491]
[1735463057282,0.4647,3396.4,3396.2,14.61343875]
[1735463057486,0.75961,3396.4,3396.2,14.90835875]
[1735463057686,0.4647,3396.4,3396.2,14.61343875]
[1735463057886,0.29493,3396.2,3396.0,0.71514]
[1735463058386,0.29493,3396.2,3396.0,14.89987875]
[1735463058786,0.29494,3396.1,3395.9,0.79495]
[1735463059082,0.29493,3396.2,3395.9,0.79495]
[1735463059294,0.4522,3396.3,3396.0,0.29494]
[1735463059483,0.29493,3396.2,3395.9,0.79495]
[1735463059688,0.29493,3396.2,3396.0,0.29494]
[1735463059891,0.29493,3396.2,3396.0,14.47967875]
[1735463060093,0.29494,3396.1,3396.0,14.18473875]
[1735463060391,0.29494,3396.1,3395.9,0.79495]
[1735463060591,0.29494,3396.1,3396.0,14.18473875]
[1735463064090,0.4522,3396.3,3395.9,14.68473875]
[1735463064291,0.29493,3396.2,3396.0,0.29494]
[1735463066885,0.29494,3396.1,3395.9,0.79495]
[1735463067087,0.29494,3396.1,3395.9,14.97968875]
[1735463068293,0.29494,3396.0,3395.9,0.5]
[1735463069997,0.73753077,3396.0,3395.9,0.5]
[1735463071694,0.44259077,3396.0,3395.9,0.5]
[1735463071993,0.44259077,3396.0,3395.9,14.97968875]
[1735463073393,2.30362744,3396.0,3395.9,14.97968875]
[1735463075401,2.30362744,3396.0,3395.9,15.44018875]
[1735463076000,3.45544116,3396.1,3396.0,0.29494]
[1735463079102,3.89803193,3396.1,3396.0,0.29494]
[1735463079894,4.19297193,3396.1,3396.0,0.29494]
[1735463080101,0.29494,3396.0,3395.9,15.44018875]
[1735463080395,0.29494,3396.0,3395.9,15.14523875]
[1735463081394,0.73753077,3396.0,3395.9,15.14523875]
[1735463082797,0.73753077,3396.0,3395.9,15.44018875]
[1735463083808,0.73753077,3396.0,3395.9,15.14523875]
[1735463084001,0.73753077,3396.0,3395.9,15.44018875]
[1735463084202,0.73753077,3396.0,3395.9,0.5]
[1735463086303,1.47363077,3396.0,3395.9,0.5]
[1735463087204,5.57476239,3396.0,3395.9,0.5]
[1735463088806,11.35578525,3396.0,3395.9,0.5]
[1735463090511,5.57476239,3396.0,3395.9,0.5]
[1735463091913,1.03104,3396.0,3395.9,0.5]
[1735463093211,7.94543504,3396.0,3395.9,0.5]
[1735463093611,0.295,3395.4,3395.3,3.2078]
[1735463094008,0.295,3395.4,3395.3,17.39253875]
[1735463094312,0.295,3395.4,3395.3,14.18473875]
[1735463096114,10.59959866,3395.4,3395.3,14.18473875]
[1735463097318,4.83872239,3395.4,3395.3,14.18473875]
[1735463099515,0.73759077,3395.4,3395.3,14.18473875]
[1735463100211,3.94539077,3395.4,3395.3,14.18473875]
[1735463100718,3.5028,3395.4,3395.3,14.18473875]
[1735463102326,3.94539077,3395.4,3395.3,14.18473875]
[1735463103224,3.65039077,3395.4,3395.3,14.18473875]
[1735463103620,8.55097023,3395.4,3395.3,14.18473875]
[1735463103820,5.34317023,3395.4,3395.3,14.18473875]
[1735463104725,5.04817023,3395.4,3395.3,14.47974875]
[1735463104925,4.34827023,3395.4,3395.3,16.8504214]
[1735463105221,0.29496,3395.9,3395.7,0.29497]
[1735463105427,0.29496,3395.9,3395.8,4.52209225]
[1735463106124,1.03105,3396.0,3395.8,4.81705225]
[1735463106431,0.29495,3395.9,3395.8,4.52209225]
[1735463107029,0.7361,3396.0,3395.8,4.52209225]
[1735463107223,0.29495,3395.9,3395.8,4.52209225]
[1735463108327,3.74991148,3395.9,3395.8,4.52209225]
[1735463109633,0.29495,3395.9,3395.8,4.52209225]
[1735463111735,0.7361,3396.0,3395.8,4.52209225]
[1735463112035,1.03105,3396.0,3395.8,4.98719225]
[1735463112234,0.7361,3396.0,3395.9,0.29495]
[1735463112435,0.7361,3396.0,3395.8,4.98719225]
[1735463112631,0.29494,3396.0,3395.8,5.28215225]
[1735463113730,0.7361,3395.9,3395.8,5.28215225]
[1735463114331,0.7361,3395.9,3395.8,4.98719225]
[1735463114734,1.03105,3395.9,3395.8,4.98719225]
[1735463116137,1.03105,3395.9,3395.8,4.52209225]
[1735463120040,0.7361,3395.9,3395.8,4.81705225]
[1735463120439,0.7361,3395.9,3395.8,4.52209225]
[1735463121842,0.7361,3395.9,3395.8,4.81705225]
[1735463124942,3.4603647,3396.1,3395.8,0.4465]
[1735463125144,3.4603647,3396.1,3396.0,0.29494]
[1735463125642,3.4603647,3396.1,3396.0,41.09494]
[1735463126243,3.6656647,3396.1,3396.0,41.09494]
[1735463128851,3.6656647,3396.1,3396.0,0.29494]
[1735463128852,3.9606047,3396.1,3396.0,0.29494]
[1735463129040,0.50024,3396.1,3396.0,0.29494]
[1735463129646,0.29495,3396.0,3395.9,0.29495]
[1735463129848,0.29495,3395.9,3395.8,1.89546]
[1735463131048,0.29495,3395.9,3395.8,0.4465]
[1735463132457,0.29496,3395.8,3395.7,3.2078]
[1735463132948,0.29496,3395.8,3395.7,2.5081]
[1735463133149,0.295,3395.4,3395.3,40.8]
[1735463133547,3.2078,3395.7,3395.1,0.4323]
[1735463133744,0.4571,3395.3,3395.1,0.4323]
[1735463133947,0.75211,3395.3,3395.0,15.09342983]
[1735463134147,0.75211,3395.3,3395.1,40.8]
[1735463134352,0.29501,3395.2,3395.0,14.63792983]
[1735463134658,0.29502,3395.1,3395.0,10.0]
[1735463136158,0.74512,3395.1,3395.0,10.0]
[1735463137762,4.9051233,3395.2,3395.0,10.0]
[1735463137961,4.9051233,3395.2,3395.1,0.4474]
[1735463138258,4.9051233,3395.2,3395.1,0.8925]
[1735463139657,0.29502,3395.2,3395.1,0.8925]
[1735463140860,3.75090111,3395.2,3395.1,0.8925]
[1735463141255,3.45588111,3395.2,3395.1,1.18752]
[1735463141457,3.45588111,3395.2,3395.1,0.8925]
[1735463141763,3.45588111,3395.2,3395.1,1.18752]
[1735463143064,4.6101033,3395.4,3395.3,0.29501]
[1735463143267,4.6101033,3395.4,3395.3,2.66568265]
[1735463143561,7.8179033,3395.7,3395.6,0.29498]
[1735463143767,4.6101033,3395.7,3395.6,0.29498]
[1735463143969,4.6101033,3395.7,3395.6,3.50278]
[1735463144769,4.6101033,3395.7,3395.6,44.30278]
[1735463145069,0.29496,3395.9,3395.8,0.29496]
[1735463145578,0.50006,3395.9,3395.8,0.29496]
[1735463146766,0.2051,3395.9,3395.8,0.29496]
[1735463147873,0.2051,3395.9,3395.6,40.8]
[1735463148174,0.2051,3395.9,3395.8,0.29496]
[1735463149580,0.2051,3395.9,3395.7,0.8971]
[1735463149581,0.29496,3395.8,3395.7,0.8971]
[1735463149782,0.75606,3395.8,3395.6,0.29498]
[1735463150470,0.75606,3395.8,3395.4,1.6114]
[1735463150675,0.29498,3395.7,3395.5,0.29498]
[1735463151276,0.29498,3395.6,3395.4,1.90639]
[1735463151482,0.72628,3395.6,3395.5,0.29499]
[1735463151881,0.4313,3395.6,3395.4,0.4584]
[1735463152082,0.4313,3395.6,3395.3,3.5028]
[1735463152279,0.29499,3395.5,3395.4,0.295]
[1735463153579,0.295,3395.4,3395.3,3.5028]
[1735463154781,0.295,3395.4,3395.3,3.2078]
[1735463155185,0.295,3395.4,3395.3,3.50281]
[1735463156683,0.29502,3395.2,3395.0,51.09503]
[1735463156988,0.29502,3395.2,3395.1,0.29502]
[1735463157786,0.50012,3395.2,3395.1,0.29502]
[1735463158389,0.2051,3395.2,3395.1,0.29502]
[1735463159989,0.50011,3395.2,3395.1,0.29502]
[1735463160681,0.29502,3395.1,3395.0,10.0]
[1735463160877,0.73922,3395.1,3395.0,10.0]
[1735463161081,0.73922,3395.1,3395.0,10.29503]
[1735463161591,0.4442,3395.1,3395.0,10.29503]
[1735463161986,0.73922,3395.1,3395.0,10.0]
[1735463165988,0.4442,3395.1,3395.0,10.29503]
[1735463166393,0.4442,3395.1,3395.0,10.0]
[1735463167189,0.4442,3395.1,3395.0,10.29503]
[1735463167394,0.4442,3395.1,3395.0,10.0]
[1735463167900,0.73922,3395.1,3395.0,10.0]
[1735463169300,0.4442,3395.1,3395.0,10.0]
[1735463169495,0.4442,3395.1,3395.0,10.29503]
[1735463169797,0.4442,3395.1,3395.0,10.0]
[1735463169993,0.73922,3395.1,3395.0,10.0]
[1735463171999,0.4442,3395.1,3395.0,10.0]
[1735463172196,0.73922,3395.1,3395.0,10.0]
[1735463173203,0.4442,3395.1,3395.0,10.0]
[1735463173501,0.73922,3395.1,3395.0,10.0]
[1735463175595,1.19642,3395.1,3395.0,10.0]
[1735463184010,1.40122,3395.1,3395.0,10.0]
[1735463187107,6.0113233,3395.1,3395.0,10.0]
[1735463188509,1.40122,3395.1,3395.0,10.0]
[1735463189108,3.77456212,3395.1,3395.0,10.0]
[1735463189313,3.77456212,3395.1,3395.0,8.64381889]
[1735463192013,6.98236212,3395.1,3395.0,8.64381889]
[1735463193112,3.77456212,3395.1,3395.0,8.64381889]
[1735463193417,6.98236212,3395.1,3395.0,8.64381889]
[1735463200421,11.69671368,3395.1,3395.0,8.64381889]
[1735463200719,9.57025795,3395.1,3395.0,8.64381889]
[1735463201111,9.27523795,3395.1,3395.0,8.64381889]
[1735463201317,9.27523795,3395.1,3395.0,8.93884889]
[1735463202324,9.27523795,3395.1,3395.0,8.64381889]
[1735463202622,3.4126,3395.1,3395.0,8.64381889]
[1735463203725,3.4126,3395.1,3395.0,8.93884889]
[1735463205019,3.70762,3395.1,3395.0,8.64381889]
[1735463206218,8.32119094,3395.1,3395.0,8.64381889]
[1735463208421,3.70762,3395.1,3395.0,8.64381889]
[1735463208622,4.75146684,3395.1,3395.0,8.64381889]
[1735463208821,3.70762,3395.1,3395.0,8.64381889]
[1735463210331,6.08184546,3395.1,3395.0,8.64381889]
[1735463215833,11.08184546,3395.1,3395.0,8.64381889]
[1735463216435,16.94532183,3395.1,3395.0,8.64381889]
[1735463218133,25.03582416,3395.1,3395.0,8.64381889]
[1735463218636,25.26672603,3395.1,3395.0,8.64381889]
[1735463219035,20.26672603,3395.1,3395.0,8.64381889]
[1735463219331,20.03582416,3395.1,3395.0,8.64381889]
[1735463219941,29.19336455,3395.1,3395.0,8.64381889]
[1735463220131,29.19336455,3395.1,3395.0,1.43273269]
[1735463220838,34.19336455,3395.1,3395.0,0.03293269]
[1735463221039,0.29511,3394.1,3394.0,0.4415]
[1735463221736,2.37422546,3394.4,3394.0,0.4415]
[1735463222242,6.05676439,3394.1,3394.0,0.4415]
[1735463225249,5.76165439,3394.1,3394.0,0.4415]
[1735463226341,6.05676439,3394.1,3394.0,0.4415]
[1735463227343,8.43098985,3394.1,3394.0,0.4415]
[1735463228240,5.76165439,3394.1,3394.0,0.4415]
[1735463229350,3.4544483,3394.1,3394.0,0.4415]
[1735463229747,3.7495583,3394.1,3394.0,0.4415]
[1735463230652,3.2078,3394.2,3394.0,0.4415]
[1735463230653,8.10884107,3394.2,3394.0,0.4415]
[1735463231352,0.29511,3394.1,3394.0,0.4415]
[1735463232454,2.66933546,3394.1,3394.0,0.4415]
[1735463232656,3.09583546,3394.1,3394.0,0.4415]
[1735463232850,2.66933546,3394.1,3394.0,0.4415]
[1735463233151,0.29511,3394.1,3394.0,0.4415]
[1735463233353,3.5029,3394.2,3394.0,0.4415]
[1735463233542,8.10883107,3394.2,3394.0,0.4415]
[1735463234457,7.81373107,3394.2,3394.0,0.4415]
[1735463234752,3.45395835,3394.1,3394.0,0.4415]
[1735463236053,3.74906835,3394.1,3394.0,0.4415]
[1735463236653,3.45395835,3394.1,3394.0,0.4415]
[1735463237251,3.74906835,3394.1,3394.0,0.4415]
[1735463242363,4.79309545,3394.1,3394.0,0.4415]
[1735463244671,1.3391371,3394.1,3394.0,0.4415]
[1735463244863,1.0440271,3394.1,3394.0,0.4415]
[1735463245762,6.66175835,3394.2,3394.0,1.4855271]
[1735463245970,6.66175835,3394.2,3394.1,0.29511]
[1735463246368,3.45395835,3394.2,3394.1,0.29511]
[1735463248061,0.2043,3394.3,3394.0,1.4855271]
[1735463248264,0.2043,3394.3,3394.2,3.5029]
[1735463249166,0.2043,3394.3,3394.2,8.5029]
[1735463249473,2.3029374,3394.6,3394.5,0.29508]
[1735463249965,2.3029374,3394.7,3394.6,0.29507]
[1735463250171,2.3029374,3394.7,3394.6,3.50287]
[1735463251162,0.29505,3394.9,3394.7,0.29505]
[1735463251368,2.5979774,3395.0,3394.8,0.29505]
[1735463251874,2.3029374,3395.0,3394.6,3.2078]
[1735463252075,2.3029374,3395.0,3394.8,0.29504]
[1735463253566,2.5979774,3395.0,3394.7,0.72536]
[1735463253769,2.5979774,3395.0,3394.7,0.4303]
[1735463254077,2.5979774,3395.0,3394.7,0.29506]
[1735463254268,2.3029374,3395.0,3394.7,0.29506]
[1735463254472,2.5979674,3395.0,3394.7,0.29506]
[1735463255174,2.3029374,3395.0,3394.8,0.29505]
[1735463257679,2.3029374,3395.1,3394.8,0.29505]
[1735463257880,2.3029374,3395.1,3394.9,0.29504]
[1735463259880,2.3029374,3395.1,3394.7,0.4297]
[1735463260179,2.3029374,3395.1,3394.8,0.29504]
[1735463261176,2.5979574,3395.1,3394.7,0.29505]
[1735463261777,2.3029374,3394.9,3394.7,0.29505]
[1735463261977,0.4638,3394.8,3394.7,0.29505]
[1735463262273,0.892,3394.8,3394.7,0.29505]
[1735463263076,0.892,3394.8,3394.6,3.2078]
[1735463263377,0.29506,3394.7,3394.6,3.2078]
[1735463263578,0.71626,3394.7,3394.6,3.2078]
[1735463264289,0.4212,3394.7,3394.6,3.2078]
[1735463265989,0.71626,3394.7,3394.6,3.2078]
[1735463268287,0.29507,3394.6,3394.2,3.5029]
[1735463268785,3.629,3394.7,3394.2,3.2078]
[1735463269288,0.29509,3394.4,3394.2,3.2078]
[1735463269487,0.74459,3394.3,3394.2,3.2078]
[1735463269683,1.17099,3394.3,3394.2,3.2078]
[1735463270486,0.8759,3394.3,3394.2,3.2078]
[1735463271497,0.8759,3394.3,3394.2,3.5029]
[1735463271690,0.8759,3394.3,3394.2,3.2078]
[1735463274196,0.8759,3394.3,3394.2,3.9325]
[1735463274197,0.4495,3394.3,3394.2,3.9325]
[1735463278801,0.71626,3394.7,3394.6,0.29507]
[1735463279211,1.15806,3394.7,3394.6,0.29507]
[1735463279414,1.15806,3394.7,3394.6,3.50287]
[1735463279909,0.863,3394.7,3394.6,3.50287]
[1735463280216,1.15806,3394.7,3394.6,3.50287]
[1735463280513,0.863,3394.7,3394.6,3.50287]
[1735463281111,1.15806,3394.7,3394.6,3.2078]
[1735463281305,1.15806,3394.7,3394.6,0.29507]
[1735463281511,0.863,3394.7,3394.6,0.29507]
[1735463282508,1.15806,3394.7,3394.5,0.29507]
[1735463283009,0.863,3394.7,3394.5,0.29507]
[1735463283914,0.863,3394.7,3394.2,0.4296]
[1735463284114,0.863,3394.7,3394.6,0.29507]
[1735463285604,3.1659374,3394.7,3394.6,0.29507]
[1735463286405,2.3029374,3394.7,3394.6,0.29507]
[1735463287019,2.3029374,3394.7,3394.6,1.44207]
[1735463287610,2.3029374,3394.7,3394.6,6.44207]
[1735463288111,4.60593107,3395.1,3395.0,0.29503]
[1735463288112,2.3029374,3395.1,3395.0,0.29503]
[1735463288320,2.3029374,3395.1,3395.0,5.87690329]
[1735463288519,2.3029374,3395.1,3395.0,10.87690329]
[1735463288711,0.1828374,3395.1,3395.0,10.87690329]
[1735463288911,0.1828374,3395.1,3395.0,51.67690329]
[1735463289620,0.29498,3395.6,3395.5,0.29499]
[1735463289812,0.29498,3395.6,3395.5,3.50279]
[1735463290711,0.29498,3395.7,3395.5,3.50279]
[1735463291421,0.29497,3395.8,3395.6,0.29498]
[1735463291622,0.29497,3395.7,3395.5,3.50278]
[1735463291922,0.29497,3395.8,3395.5,3.50278]
[1735463292119,0.29497,3395.8,3395.6,0.29498]
[1735463292919,0.29497,3395.8,3395.5,3.50278]
[1735463293120,0.8743,3395.9,3395.5,3.50278]
[1735463293710,0.29497,3395.8,3395.5,3.50278]
[1735463295021,0.29497,3395.8,3395.5,0.29498]
[1735463295217,0.29497,3395.8,3395.7,3.2078]
[1735463295614,1.16926,3395.9,3395.7,3.2078]
[1735463298122,0.29496,3395.8,3395.7,3.2078]
[1735463301024,0.29496,3395.8,3395.4,0.295]
[1735463301325,0.29496,3395.8,3395.7,3.2078]
[1735463303527,1.16926,3395.9,3395.7,3.2078]
[1735463304920,0.8743,3395.9,3395.7,3.2078]
[1735463305114,0.29496,3395.8,3395.7,3.2078]
[1735463312026,5.66883604,3395.9,3395.7,3.2078]
[1735463312427,5.37387604,3395.9,3395.7,3.2078]
[1735463313628,1.91723222,3395.9,3395.7,3.2078]
[1735463314037,2.21218222,3395.9,3395.7,3.2078]
[1735463314429,2.21219222,3395.9,3395.7,3.2078]
[1735463314633,1.91723222,3395.9,3395.7,3.2078]
[1735463314837,0.29496,3395.8,3395.7,3.2078]
[1735463318537,0.29496,3395.8,3395.4,0.29499]
[1735463318738,0.29498,3395.7,3395.4,0.29499]
[1735463320340,3.75162382,3395.7,3395.4,0.29499]
[1735463320541,0.29498,3395.6,3395.4,0.29499]
[1735463320742,0.4418,3395.5,3395.4,0.29499]
[1735463321539,0.73679,3395.5,3395.3,3.5028]
[1735463321844,0.4394,3395.4,3395.3,3.5028]
[1735463322144,0.7344,3395.4,3395.3,3.5028]
[1735463322639,0.7344,3395.4,3395.3,3.2078]
[1735463323946,0.29504,3395.0,3394.8,0.29505]
[1735463324144,0.9023,3394.9,3394.7,7.84102601]
[1735463324343,1.64304,3394.9,3394.7,7.84102601]
[1735463325042,1.64304,3394.9,3394.7,3.50286]
[1735463325539,0.29505,3394.8,3394.7,3.2078]
[1735463327148,4.80464382,3394.9,3394.7,3.2078]